bitfinex-derivatives/quotes_BNBF0:USTF0_20251203
["timestamp","ask_amount","ask_price","bid_price","bid_amount"]
[1764759639562,1.65345013,898.03,897.39,0.70627956]
[1764759639762,1.65345013,898.03,897.4,0.70627956]
[1764759639962,1.65345013,898.04,897.41,0.70627956]
[1764759640267,1.65345013,898.04,897.42,0.70627956]
[1764759640566,1.65345013,898.04,897.37,1.238]
[1764759640765,1.65345013,898.04,897.38,0.70627266]
[1764759640967,1.65345013,898.04,897.39,0.70627266]
[1764759641163,1.65345013,898.04,897.4,0.70627266]
[1764759641366,1.65345013,898.04,897.41,0.70627266]
[1764759641567,1.65345013,898.02,897.37,1.238]
[1764759641767,1.65345013,898.02,897.38,0.70628581]
[1764759642066,1.65345013,898.02,897.39,0.70628581]
[1764759642263,1.65345013,898.02,897.4,0.70628581]
[1764759642463,1.65345013,898.02,897.37,1.238]
[1764759642664,1.65345013,898.02,897.38,0.70621239]
[1764759642868,1.65345013,898.02,897.39,0.70621239]
[1764759643068,1.65345013,898.02,897.4,0.70621239]
[1764759643267,1.65345013,898.02,897.37,1.238]
[1764759643467,1.65345013,898.02,897.38,0.70616958]
[1764759643668,1.65345013,898.02,897.39,0.70616958]
[1764759643870,1.65345013,898.02,897.37,1.238]
[1764759644168,1.65345013,898.02,897.38,0.70616958]
[1764759644368,1.65345013,898.02,897.39,0.70616958]
[1764759644568,1.65345013,898.02,897.37,1.238]
[1764759644868,1.65345013,897.91,897.37,1.238]
[1764759645965,1.65345013,897.92,897.37,1.238]
[1764759646368,1.65345013,897.91,897.37,1.238]
[1764759646665,1.65345013,897.92,897.37,1.238]
[1764759646866,1.65345013,897.86,897.37,1.238]
[1764759647269,1.65345013,897.87,897.37,1.238]
[1764759650173,1.65345013,897.86,897.37,1.238]
[1764759656878,0.19382705,898.1,897.37,1.238]
[1764759656879,1.65345013,897.94,897.37,1.238]
[1764759657076,1.65345013,897.98,897.37,1.238]
[1764759657279,1.65345013,897.97,897.37,1.238]
[1764759657481,1.65345013,897.98,897.37,1.238]
[1764759659281,1.65345013,897.99,897.37,1.238]
[1764759660379,1.65345013,897.97,897.37,1.238]
[1764759660578,1.65345013,897.96,897.37,1.238]
[1764759661383,1.65345013,897.91,897.37,1.238]
[1764759662782,1.65345013,897.91,897.35,1.432]
[1764759663679,1.65345013,897.88,897.35,1.432]
[1764759664479,1.65345013,897.86,897.36,1.037]
[1764759664779,1.65345013,897.8,897.36,1.037]
[1764759666883,0.19382705,898.1,897.36,1.037]
[1764759666884,1.65345013,897.76,897.36,1.037]
[1764759667286,0.19382705,898.1,897.36,1.037]
[1764759667287,1.65345013,897.68,897.36,1.037]
[1764759667581,1.65345013,897.6,897.36,1.037]
[1764759668280,1.65345013,897.72,897.36,1.037]
[1764759668777,1.65345013,897.7,897.36,1.037]
[1764759669380,1.65345013,897.7,897.37,1.24]
[1764759670285,0.19390535,897.62,897.37,1.24]
[1764759701495,0.19390535,897.62,897.38,0.70098361]
[1764759701699,0.19390535,897.62,897.39,0.70097341]
[1764759701902,0.19390535,897.62,897.37,1.24]
[1764759702098,0.19390535,897.62,897.38,0.70097341]
[1764759702296,0.19390535,897.62,897.37,1.24]
[1764759702297,0.19390535,897.62,897.39,0.70097341]
[1764759702501,0.19390535,897.62,897.4,0.70097341]
[1764759702795,0.19390535,897.62,897.37,1.24]
[1764759702796,0.19390535,897.62,897.41,0.70097341]
[1764759703002,0.19390535,897.62,897.42,0.70097341]
[1764759703301,0.19390535,897.62,897.43,0.70097341]
[1764759703502,0.19390535,897.62,897.37,1.24]
[1764759704001,0.19390535,897.62,897.38,0.70092569]
[1764759704197,0.19390535,897.62,897.39,0.70092569]
[1764759704500,0.19390535,897.62,897.4,0.70092569]
[1764759704696,0.19390535,897.62,897.41,0.70092569]
[1764759704897,0.19390535,897.62,897.42,0.70092569]
[1764759705201,0.19390535,897.62,897.43,0.70092569]
[1764759705400,0.19390535,897.62,897.44,0.70092569]
[1764759705701,0.19390535,897.62,897.45,0.70092569]
[1764759706002,0.19390535,897.62,897.46,0.70092569]
[1764759706302,0.19390535,897.62,897.47,0.70092569]
[1764759706502,0.19390535,897.62,897.37,1.24]
[1764759706698,0.19390535,897.62,897.38,0.70026993]
[1764759706998,0.19390535,897.62,897.39,0.70026993]
[1764759707297,0.19390535,897.62,897.4,0.70026993]
[1764759707502,0.19390535,897.62,897.41,0.70026993]
[1764759707701,0.19390535,897.62,897.42,0.70026993]
[1764759707998,0.19390535,897.62,897.43,0.70026993]
[1764759708198,0.19390535,897.62,897.44,0.70026993]
[1764759708402,0.19390535,897.62,897.37,1.24]
[1764759708603,0.19390535,897.62,897.38,0.70027954]
[1764759708800,0.19390535,897.62,897.39,0.70027954]
[1764759709002,0.19390535,897.62,897.4,0.70027954]
[1764759709202,0.19390535,897.62,897.41,0.70027954]
[1764759709500,0.19390535,897.62,897.37,1.24]
[1764759728409,0.19390535,897.62,896.91,1.216]
[1764759728712,0.19390535,897.62,896.92,0.69828096]
[1764759728911,0.19390535,897.62,896.93,0.69828096]
[1764759729110,0.19390535,897.62,896.94,0.69828096]
[1764759729310,0.19390535,897.62,896.95,0.69828096]
[1764759729512,0.19390535,897.62,896.96,0.69828096]
[1764759729712,0.19390535,897.62,896.97,0.69828096]
[1764759729910,0.19390535,897.62,896.98,0.69828096]
[1764759730111,0.19390535,897.62,896.99,0.69828096]
[1764759730411,0.19390535,897.62,897.0,0.69828096]
[1764759730615,0.19390535,897.62,897.01,0.69828096]
[1764759730915,0.19390535,897.62,897.02,0.69828096]
[1764759731115,0.19390535,897.62,897.03,0.69828096]
[1764759731315,0.19390535,897.62,897.04,0.69828096]
[1764759731512,0.19390535,897.62,897.05,0.69828096]
[1764759731717,0.19390535,897.62,897.06,0.69828096]
[1764759731917,0.19390535,897.62,897.07,0.69828096]
[1764759732116,0.19390535,897.62,897.08,0.69828096]
[1764759732316,0.19390535,897.62,897.09,0.69828096]
[1764759732516,0.19390535,897.62,897.07,1.149]
[1764759746429,0.19390535,897.62,897.08,1.094]
[1764759754536,1.6668066,897.59,897.08,1.094]
[1764759754835,1.6668066,897.57,897.08,1.094]
[1764759756936,1.6668066,897.53,897.08,1.094]
[1764759757435,1.6668066,897.54,897.08,1.094]
[1764759759039,1.6668066,897.53,897.08,1.094]
[1764759760236,1.6668066,897.52,897.08,1.094]
[1764759760939,1.6668066,897.51,897.08,1.094]
[1764759761544,1.6668066,897.47,897.08,1.094]
[1764759761743,1.6668066,897.45,897.08,1.094]
[1764759761939,1.6668066,897.42,897.08,1.094]
[1764759764342,1.6668066,897.34,897.08,1.094]
[1764759768341,1.6668066,897.32,897.08,1.094]
[1764759768544,0.19390535,897.62,897.08,1.094]
[1764759768545,1.6668066,897.31,897.08,1.094]
[1764759768744,1.6668066,897.3,897.08,1.094]
[1764759772244,1.6668066,897.38,897.08,1.094]
[1764759774751,1.6668066,897.32,897.08,1.094]
[1764759776747,1.6668066,897.26,897.08,1.094]
[1764759776953,0.19390535,897.62,897.08,1.094]
[1764759779858,2.77801101,897.48,897.08,0.16636623]
[1764759780453,2.77801101,897.41,897.08,0.16636623]
[1764759780957,2.77801101,897.44,896.71,1.061]
[1764759781151,1.6569788,896.8,896.71,1.061]
[1764759781552,1.6569788,896.84,896.71,1.061]
[1764759782358,1.6569788,896.86,896.71,1.061]
[1764759783352,1.6569788,896.78,896.71,1.061]
[1764759784759,2.77801101,897.43,896.71,1.061]
[1764759785054,2.77801101,897.29,896.71,1.061]
[1764759786558,2.77801101,897.28,896.71,1.061]
[1764759787054,2.77801101,897.3,896.71,1.061]
[1764759790758,1.65709028,896.72,896.71,1.061]
[1764759790962,1.65709028,896.75,896.71,1.061]
[1764759791263,1.65709028,896.8,896.71,1.061]
[1764759791562,1.65709028,896.82,896.71,1.061]
[1764759792260,1.65709028,896.81,896.71,1.061]
[1764759794562,1.65709028,896.79,896.71,1.061]
[1764759796263,1.65709028,896.8,896.71,1.061]
[1764759796970,1.65709028,896.78,896.71,1.061]
[1764759797167,1.65709028,896.79,896.71,1.061]
[1764759798270,1.65709028,896.8,896.71,1.061]
[1764759799370,1.65709028,896.85,896.71,1.061]
[1764759799569,1.65709028,896.94,896.71,1.061]
[1764759799973,1.65709028,897.15,896.71,1.061]
[1764759800174,1.65709028,897.18,896.71,1.061]
[1764759801173,1.65709028,897.14,896.71,1.061]
[1764759801373,0.19390535,897.62,896.71,1.061]
[1764759801374,1.65709028,897.17,896.71,1.061]
[1764759802173,1.65709028,897.2,896.71,1.061]
[1764759803270,1.65709028,897.31,896.71,1.061]
[1764759805869,1.65709028,897.33,896.71,1.061]
[1764759806774,1.65709028,897.44,896.71,1.061]
[1764759806972,1.65709028,897.52,896.71,1.061]
[1764759807171,1.65709028,897.54,896.71,1.061]
[1764759807376,1.65709028,897.58,896.71,1.061]
[1764759807573,1.65709028,897.57,896.71,1.061]
[1764759808473,1.65709028,897.31,896.71,1.061]
[1764759808673,1.65709028,897.33,896.71,1.061]
[1764759809977,1.65709028,897.29,896.71,1.061]
[1764759814478,0.19390535,897.62,896.71,1.061]
[1764759814479,1.65709028,897.3,896.71,1.061]
[1764759814975,1.65709028,897.31,896.71,1.061]
[1764759815276,1.65709028,897.3,896.71,1.061]
[1764759816680,1.65709028,897.29,896.71,1.061]
[1764759816975,0.19390535,897.62,896.71,1.061]
[1764759816976,1.65709028,897.28,896.71,1.061]
[1764759824779,1.65709028,897.25,896.71,1.061]
[1764759825483,1.65709028,897.23,896.71,1.061]
[1764759826283,1.65709028,897.21,896.71,1.061]
[1764759828083,1.65709028,897.2,896.71,1.061]
[1764759829385,1.65709028,897.18,896.71,1.061]
[1764759830284,1.65709028,897.17,896.71,1.061]
[1764759832383,1.65709028,897.16,896.71,1.061]
[1764759833487,1.65709028,897.16,896.01,0.83137321]
[1764759833688,1.65709028,897.16,896.25,0.69969291]
[1764759833983,1.65709028,897.16,896.26,0.69969291]
[1764759834187,1.65709028,897.16,896.27,0.69969291]
[1764759834389,1.65709028,897.16,896.28,0.69969291]
[1764759834584,1.65709028,897.16,896.29,0.69969291]
[1764759834788,1.65709028,897.16,896.3,0.69969291]
[1764759835083,1.65709028,897.16,896.01,0.83137321]
[1764759835289,1.65709028,897.15,896.02,1.53118602]
[1764759835489,1.65709028,897.15,896.03,0.69981281]
[1764759835686,1.65709028,897.15,896.04,0.69981281]
[1764759835989,1.65709028,897.15,896.05,0.69981281]
[1764759836288,1.65709028,897.15,896.06,0.69981281]
[1764759836490,1.65709028,897.14,896.07,0.69981281]
[1764759836688,1.65709028,897.14,896.08,0.69981281]
[1764759836890,1.65709028,897.14,896.09,0.69981281]
[1764759837090,1.65709028,897.27,896.15,0.83137321]
[1764759837289,1.65709028,897.27,896.16,0.69981281]
[1764759837489,1.65709028,897.26,896.17,0.69981281]
[1764759837686,1.65709028,897.15,896.18,0.69981281]
[1764759837886,1.65709028,897.14,896.19,0.69981281]
[1764759838188,1.65709028,897.14,896.2,0.69981281]
[1764759838390,1.65709028,897.14,896.21,0.69981281]
[1764759838588,1.65709028,897.14,896.22,0.69981281]
[1764759838888,1.65709028,897.14,896.23,0.69981281]
[1764759839092,1.65709028,897.14,896.24,0.69981281]
[1764759839293,1.65709028,897.14,896.25,0.69981281]
[1764759839488,1.65709028,897.14,896.26,0.69981281]
[1764759839688,1.65709028,897.14,896.27,0.69981281]
[1764759839890,1.65709028,897.14,896.28,0.69981281]
[1764759840089,1.65709028,897.14,896.29,0.69981281]
[1764759840291,1.65709028,897.14,896.3,0.69981281]
[1764759840489,1.65709028,897.14,896.31,0.69981281]
[1764759840695,1.65709028,897.14,896.16,1.321]
[1764759840995,1.65709028,897.14,896.17,0.70195433]
[1764759841194,1.65709028,897.14,896.18,0.70195433]
[1764759841489,1.65709028,897.14,896.19,0.70195433]
[1764759841689,1.65709028,897.15,896.2,0.70195433]
[1764759841894,1.65709028,897.15,896.21,0.70195433]
[1764759842089,1.65709028,897.15,896.22,0.70195433]
[1764759842293,1.65709028,897.15,896.23,0.70195433]
[1764759842493,1.65709028,897.15,896.24,0.70195433]
[1764759842694,1.65709028,897.21,896.25,0.70195433]
[1764759842891,1.65709028,897.26,896.26,0.70195433]
[1764759843089,1.65709028,897.26,896.27,0.70195433]
[1764759843294,1.65709028,897.26,896.28,0.70195433]
[1764759843492,1.65709028,897.27,896.29,0.70195433]
[1764759843691,1.65709028,897.27,896.3,0.70195433]
[1764759843894,1.65709028,897.27,896.31,0.70195433]
[1764759844095,1.65709028,897.27,896.32,0.70195433]
[1764759844296,1.65709028,897.29,896.33,0.70195433]
[1764759844497,1.65709028,897.29,896.18,0.83137321]
[1764759844498,1.65709028,897.29,896.34,0.70195433]
[1764759844692,1.65709028,897.41,896.35,0.70195433]
[1764759844898,1.65709028,897.45,896.36,0.70195433]
[1764759845097,1.65709028,897.46,896.37,0.70195433]
[1764759845297,1.65709028,897.46,896.38,0.70195433]
[1764759845496,1.65709028,897.5,896.39,0.70195433]
[1764759845697,1.65709028,897.5,896.4,0.70195433]
[1764759845898,1.65709028,897.5,896.41,0.70195433]
[1764759846193,1.65709028,897.49,896.42,0.70195433]
[1764759846396,1.65709028,897.51,896.43,0.70195433]
[1764759846596,1.65709028,897.51,896.44,0.70195433]
[1764759846795,1.65709028,897.51,896.45,0.70195433]
[1764759847000,1.65709028,897.5,896.46,0.70195433]
[1764759847199,1.65709028,897.5,896.47,0.70195433]
[1764759847400,1.65709028,897.5,896.48,0.70195433]
[1764759847598,1.65709028,897.5,896.49,0.70195433]
[1764759847902,1.65709028,897.5,896.5,0.70195433]
[1764759848097,1.65709028,897.5,896.51,0.70195433]
[1764759848300,1.65709028,897.5,896.52,0.70195433]
[1764759848500,1.65709028,897.5,896.53,0.70195433]
[1764759848700,1.65709028,897.5,896.54,0.70195433]
[1764759848901,1.65709028,897.5,896.55,0.70195433]
[1764759849200,1.65709028,897.5,896.56,0.70195433]
[1764759849398,1.65709028,897.5,896.57,0.70195433]
[1764759849603,1.65709028,897.5,896.58,0.70195433]
[1764759849901,1.65709028,897.5,896.59,0.70195433]
[1764759850102,1.65709028,897.5,896.6,0.70195433]
[1764759850399,1.65709028,897.5,896.61,0.70195433]
[1764759850598,1.65709028,897.5,896.62,0.70195433]
[1764759850896,1.65709028,897.5,896.63,0.70195433]
[1764759851100,1.65709028,897.5,896.38,0.83137321]
[1764759851101,1.65709028,897.5,896.64,0.70195433]
[1764759851299,1.65709028,897.5,896.65,0.70195433]
[1764759851598,1.65709028,897.5,896.66,0.70195433]
[1764759851897,1.65709028,897.5,896.67,0.70195433]
[1764759852100,1.65709028,897.5,896.38,0.83137321]
[1764759852299,1.65709028,897.5,896.39,0.70174533]
[1764759852497,1.65709028,897.5,896.4,0.70174533]
[1764759852702,1.65709028,897.5,896.41,0.70174533]
[1764759852902,1.65709028,897.47,896.42,0.70174533]
[1764759853100,1.65709028,897.47,896.43,0.70174533]
[1764759853300,1.65709028,897.46,896.44,0.70174533]
[1764759853498,1.65709028,897.46,896.45,0.70174533]
[1764759853703,1.65709028,897.46,896.46,0.70174533]
[1764759853901,1.65709028,897.46,896.47,0.70174533]
[1764759854100,1.65709028,897.46,896.48,0.70174533]
[1764759854301,1.65709028,897.46,896.49,0.70174533]
[1764759854502,1.65709028,897.46,896.5,0.70174533]
[1764759854703,1.65709028,897.46,896.51,0.70174533]
[1764759854904,1.65709028,897.46,896.52,0.70174533]
[1764759855101,1.65709028,897.45,896.53,0.70174533]
[1764759855302,1.65709028,897.45,896.54,0.70174533]
[1764759855502,1.65709028,897.45,896.55,0.70174533]
[1764759855806,1.65709028,897.47,896.56,0.70174533]
[1764759856001,1.65709028,897.47,896.57,0.70174533]
[1764759856205,1.65709028,897.47,896.58,0.70174533]
[1764759856505,1.65709028,897.48,896.59,0.70174533]
[1764759856706,1.65709028,897.48,896.6,0.70174533]
[1764759856902,1.65709028,897.48,896.28,0.83137321]
[1764759857103,1.65709028,897.46,896.29,0.70129967]
[1764759857303,1.65709028,897.41,896.3,0.70129967]
[1764759857605,1.65709028,897.41,896.31,0.70129967]
[1764759857806,1.65709028,897.4,896.32,0.70129967]
[1764759858105,1.65709028,897.4,896.33,0.70129967]
[1764759858310,1.65709028,897.4,896.34,0.70129967]
[1764759858509,1.65709028,897.4,896.35,0.70129967]
[1764759858711,1.65709028,897.4,896.36,0.70129967]
[1764759858908,1.65709028,897.39,896.37,0.70129967]
[1764759859108,1.65709028,897.39,896.38,0.70129967]
[1764759859307,1.65709028,897.39,896.39,0.70129967]
[1764759859508,1.65709028,897.39,896.22,0.83137321]
[1764759859509,1.65709028,897.39,896.4,0.70129967]
[1764759859710,1.65709028,897.39,896.41,0.70129967]
[1764759859909,1.65709028,897.39,896.16,1.321]
[1764759859910,1.65709028,897.28,896.42,0.70129967]
[1764759860113,1.65709028,897.28,896.43,0.70129967]
[1764759860413,1.65709028,897.28,896.44,0.70129967]
[1764759860613,1.65709028,897.28,896.16,1.321]
[1764759860813,1.65709028,897.28,896.17,0.70180432]
[1764759861013,1.65709028,897.28,896.18,0.70180432]
[1764759861309,1.65709028,897.28,896.19,0.70180432]
[1764759861513,1.65709028,897.28,896.2,0.70180432]
[1764759861709,1.65709028,897.28,896.21,0.70180432]
[1764759861912,1.65709028,897.28,896.22,0.70180432]
[1764759862110,0.19390535,897.62,896.23,0.70180432]
[1764759862111,1.65709028,897.27,896.23,0.70180432]
[1764759862309,1.65709028,897.27,896.24,0.70180432]
[1764759862512,1.65709028,897.27,896.25,0.70180432]
[1764759862712,1.65709028,897.27,896.26,0.70180432]
[1764759863012,1.65709028,897.27,896.27,0.70180432]
[1764759863211,1.65709028,897.22,896.28,0.70180432]
[1764759863509,1.65709028,897.21,896.29,0.70180432]
[1764759863710,1.65709028,897.21,896.3,0.70180432]
[1764759863910,1.65709028,897.21,896.31,0.70180432]
[1764759864216,1.65709028,897.21,896.32,0.70180432]
[1764759864416,1.65709028,897.21,896.33,0.70180432]
[1764759864611,1.65709028,897.24,896.34,0.70180432]
[1764759864815,1.65709028,897.24,896.35,0.70180432]
[1764759865111,1.65709028,897.24,896.36,0.70180432]
[1764759865416,1.65709028,897.24,896.37,0.70180432]
[1764759865616,1.65709028,897.24,896.38,0.70180432]
[1764759865918,1.65709028,897.24,896.39,0.70180432]
[1764759866111,1.65709028,897.24,896.4,0.70180432]
[1764759866321,1.65709028,897.24,896.41,0.70180432]
[1764759866611,1.65709028,897.24,896.42,2.04780432]
[1764759866816,1.65709028,897.24,896.43,0.70180432]
[1764759867016,1.65709028,897.28,896.44,0.70180432]
[1764759867218,1.65709028,897.28,896.45,0.70180432]
[1764759867513,1.65709028,897.28,896.46,0.70180432]
[1764759867713,1.65709028,897.28,896.47,0.70180432]
[1764759867913,1.65709028,897.28,896.48,0.70180432]
[1764759868123,1.65709028,897.28,896.49,0.70180432]
[1764759868324,1.65709028,897.28,896.5,0.70180432]
[1764759868521,1.65709028,897.28,896.51,0.70180432]
[1764759868725,1.65709028,897.28,896.52,0.70180432]
[1764759868926,1.65709028,897.28,896.53,0.70180432]
[1764759869221,1.65709028,897.28,896.54,0.70180432]
[1764759869426,1.65709028,897.28,896.55,0.70180432]
[1764759869620,1.65709028,897.28,896.56,0.70180432]
[1764759869822,1.65709028,897.28,896.57,0.70180432]
[1764759870028,1.65709028,897.28,896.42,1.346]
[1764759870226,1.65709028,897.28,896.43,0.70301618]
[1764759870423,1.65709028,897.28,896.44,0.70301618]
[1764759870627,0.19403996,897.07,896.45,0.70301618]
[1764759870827,0.19403996,897.07,896.46,0.70301618]
[1764759871024,0.19403996,897.07,896.47,0.70301618]
[1764759871226,0.19403996,897.07,896.48,0.70301618]
[1764759871425,0.19403996,897.07,896.49,0.70301618]
[1764759871629,0.19403996,897.07,896.5,0.70301618]
[1764759871827,0.19403996,897.07,896.51,0.70301618]
[1764759872031,0.19403996,897.07,896.52,0.70301618]
[1764759872326,0.19403996,897.07,896.53,0.70301618]
[1764759872531,0.19403996,897.07,896.54,0.70301618]
[1764759872730,0.19403996,897.07,896.55,0.70301618]
[1764759873032,0.19403996,897.07,896.56,0.70301618]
[1764759873233,0.19403996,897.07,896.57,0.70301618]
[1764759873432,0.19403996,897.07,896.48,1.049]
[1764759873631,0.19403996,897.07,896.49,0.70310352]
[1764759873930,0.19403996,897.07,896.5,0.70310352]
[1764759874128,0.19403996,897.07,896.51,0.70310352]
[1764759874332,0.19403996,897.07,896.52,0.70310352]
[1764759874534,0.19403996,897.07,896.53,0.70310352]
[1764759874729,0.19403996,897.07,896.54,0.70310352]
[1764759875030,0.19403996,897.07,896.55,0.70310352]
[1764759875233,0.19403996,897.07,896.48,1.049]
[1764759875234,0.19403996,897.07,896.56,0.70310352]
[1764759875434,0.19403996,897.07,896.57,0.70310352]
[1764759875635,0.19403996,897.07,896.48,1.049]
[1764759875934,0.19403996,897.07,896.49,0.70310411]
[1764759876134,0.19403996,897.07,896.5,0.70310411]
[1764759876335,0.19403996,897.07,896.51,0.70310411]
[1764759876634,0.19403996,897.07,896.52,0.70310411]
[1764759876834,0.19403996,897.07,896.53,0.70310411]
[1764759877034,0.19403996,897.07,896.48,1.049]
[1764759885539,0.19403996,897.07,896.42,1.346]
[1764759886941,0.19403996,897.07,896.43,0.70296298]
[1764759887142,0.19403996,897.07,896.44,0.70296298]
[1764759887342,0.19403996,897.07,896.45,0.70296298]
[1764759887543,0.19403996,897.07,896.46,0.70296298]
[1764759887837,0.19403996,897.07,896.47,0.70296298]
[1764759888039,0.19403996,897.07,896.42,1.346]
[1764759888244,0.19403996,897.07,896.43,0.70290674]
[1764759888446,0.19403996,897.07,896.44,0.70290674]
[1764759888639,0.19403996,897.07,896.45,0.70290674]
[1764759888844,0.19403996,897.07,896.46,0.70290674]
[1764759889045,0.19403996,897.07,896.47,0.70290674]
[1764759889245,0.19403996,897.07,896.42,1.346]
[1764759889246,0.19403996,897.07,896.48,0.70290674]
[1764759889444,0.19403996,897.07,896.49,0.70290674]
[1764759889639,0.19403996,897.07,896.42,1.346]
[1764759889845,0.19403996,897.07,896.43,0.70285589]
[1764759890146,0.19403996,897.07,896.44,0.70285589]
[1764759890343,0.19403996,897.07,896.45,0.70285589]
[1764759890543,0.19403996,897.07,896.46,0.70285589]
[1764759890846,0.19403996,897.07,896.47,0.70285589]
[1764759891145,0.19403996,897.07,896.48,0.70285589]
[1764759891347,0.19403996,897.07,896.49,0.70285589]
[1764759891647,0.19403996,897.07,896.42,1.346]
[1764759891844,0.19403996,897.07,896.43,0.70281652]
[1764759892043,0.19403996,897.07,896.44,0.70281652]
[1764759892244,0.19403996,897.07,896.45,0.70281652]
[1764759892448,0.19403996,897.07,896.46,0.70281652]
[1764759892641,0.19403996,897.07,896.47,0.70281652]
[1764759892942,0.19403996,897.07,896.48,0.70281652]
[1764759893143,0.19403996,897.07,896.49,0.70281652]
[1764759893342,0.19403996,897.07,896.5,0.7029032]
[1764759893547,0.19403996,897.07,896.42,1.346]
[1764759893749,0.19403996,897.07,896.43,0.7029032]
[1764759894046,0.19403996,897.07,896.44,0.7029032]
[1764759894241,0.19403996,897.07,896.42,1.346]
[1764759894242,0.19403996,897.07,896.45,0.7029032]
[1764759894449,0.19403996,897.07,896.46,0.7029032]
[1764759894643,0.19403996,897.07,896.47,0.7029032]
[1764759894849,0.19403996,897.07,896.48,0.7029032]
[1764759895048,0.19403996,897.07,896.49,0.7029032]
[1764759895244,0.19403996,897.07,896.42,1.346]
[1764759895449,0.19403996,897.07,896.43,0.70283058]
[1764759895649,0.19403996,897.07,896.44,0.70283058]
[1764759895949,0.19403996,897.07,896.45,0.70283058]
[1764759896246,0.19403996,897.07,896.46,0.70283058]
[1764759896449,0.19403996,897.07,896.47,0.70283058]
[1764759896650,0.19403996,897.07,896.48,0.70283058]
[1764759896949,0.19403996,897.07,896.49,0.70283058]
[1764759897146,0.19403996,897.07,896.5,0.70278573]
[1764759897350,0.19403996,897.07,896.51,0.70278573]
[1764759897650,0.19403996,897.07,896.37,0.976]
[1764759899853,1.30087665,897.07,896.37,0.976]
[1764759900352,1.10683669,897.04,896.37,0.976]
[1764759900553,1.10683669,897.05,896.37,0.976]
[1764759901150,1.10683669,897.0,896.37,0.976]
[1764759901354,1.10683669,896.99,896.37,0.976]
[1764759902353,1.10683669,896.94,896.37,0.976]
[1764759904550,1.10683669,896.93,896.37,0.976]
[1764759905451,1.10683669,896.94,896.37,0.976]
[1764759906960,1.10683669,896.97,896.37,0.976]
[1764759908057,1.10683669,896.97,896.11,1.324]
[1764759908557,1.10683669,896.95,896.11,1.324]
[1764759911359,1.10683669,896.95,896.12,1.376]
[1764759915462,1.10683669,896.96,896.12,1.376]
[1764759915762,1.10683669,896.95,896.12,1.376]
[1764759916057,0.19403996,897.07,896.17,0.83137321]
[1764759916058,1.10683669,897.04,896.17,0.83137321]
[1764759916260,1.10683669,897.04,896.12,1.376]
[1764759916261,1.10683669,897.05,896.18,0.83137321]
[1764759916461,1.30087665,897.07,896.23,0.83137321]
[1764759916661,0.19403996,897.07,896.27,0.83137321]
[1764759917161,0.19403996,897.07,896.24,0.83137321]
[1764759917362,0.19403996,897.07,896.29,0.83137321]
[1764759917964,0.19403996,897.07,896.27,0.83137321]
[1764759918159,0.19403996,897.07,896.28,0.83137321]
[1764759918464,0.19403996,897.07,896.29,0.83137321]
[1764759919463,0.19403996,897.07,896.12,2.48954548]
[1764759919464,0.19403996,897.07,896.28,0.83137321]
[1764759922061,0.19403996,897.07,896.12,2.48954548]
[1764759922062,0.19403996,897.07,896.27,0.83137321]
[1764759923367,0.19403996,897.07,896.26,0.83137321]
[1764759923666,0.19403996,897.07,896.22,0.83137321]
[1764759923862,0.19403996,897.07,896.24,0.83137321]
[1764759924065,0.19403996,897.07,896.26,0.83137321]
[1764759924261,0.19403996,897.07,896.12,1.376]
[1764759924262,0.19403996,897.07,896.32,0.83137321]
[1764759925368,0.19403996,897.07,896.35,0.83137321]
[1764759926565,0.19403996,897.07,896.34,0.83137321]
[1764759926775,0.19403996,897.07,896.35,0.83137321]
[1764759927076,0.19403996,897.07,896.41,0.83137321]
[1764759927377,0.19403996,897.07,896.39,0.83137321]
[1764759927576,0.19403996,897.07,896.4,0.83137321]
[1764759927777,0.19403996,897.07,896.47,0.83137321]
[1764759928174,0.19403996,897.07,896.44,0.83137321]
[1764759928774,0.19403996,897.07,896.46,0.83137321]
[1764759929282,0.19403996,897.07,896.44,0.83137321]
[1764759930280,0.19403996,897.07,896.43,0.83137321]
[1764759930684,0.19403996,897.07,896.42,0.83137321]
[1764759930984,0.19403996,897.07,896.39,0.83137321]
[1764759931180,0.19403996,897.07,896.14,0.955]
[1764759931181,0.19403996,897.07,896.41,0.83137321]
[1764759931385,0.19403996,897.07,896.4,0.83137321]
[1764759931780,0.19403996,897.07,896.39,0.83137321]
[1764759932084,0.19403996,897.07,896.37,0.83137321]
[1764759932382,0.19403996,897.07,896.25,0.83137321]
[1764759932580,0.19403996,897.07,896.26,0.83137321]
[1764759934181,0.19403996,897.07,896.27,0.83137321]
[1764759935388,0.19403996,897.07,896.28,0.83137321]
[1764759937088,0.19403996,897.07,896.3,0.83137321]
[1764759938189,0.19403996,897.07,896.31,0.83137321]
[1764759939286,0.19403996,897.07,896.32,0.83137321]